fUST/lending_fUST_20250620
["ID","MTS","AMOUNT","RATE_DAILY","PERIOD"]
[366752932,1750432253029,-151.0,0.00021268,2]
[366752933,1750432253039,-800.0,0.00021283,2]
[366752934,1750432253049,-151.0,0.000213,3]
[366752935,1750432253059,-574.38292258,0.00021306,2]
[366752936,1750432253069,-800.0,0.00021307,2]
[366752937,1750432253079,-460.0,0.00021328,2]
[366752938,1750432253090,-237.92386532,0.00021328,2]
[366752939,1750432253100,-1392.48,0.00021328,2]
[366752940,1750432253110,-2501.22,0.00021328,2]
[366752941,1750432253120,-2688.98,0.00021328,2]
[366752942,1750432253131,-2915.14,0.00021328,2]
[366752943,1750432253141,-160.47005698,0.00021329,2]
[366752944,1750432253151,-200.0,0.00021329,2]
[366752945,1750432253161,-535.67,0.0002133,2]
[366752946,1750432253171,-151.0,0.0002133,2]
[366752947,1750432253181,-151.0,0.0002133,2]
[366752948,1750432253190,-460.0,0.0002133,2]
[366752949,1750432253199,-310.339453,0.0002133,2]
[366752950,1750432253212,-634.28,0.0002133,2]
[366752951,1750432253221,-310.339453,0.0002133,2]
[366752952,1750432253234,-151.0,0.0002133,2]
[366752953,1750432253244,-460.0,0.0002133,2]
[366752954,1750432253253,-460.0,0.0002133,2]
[366752955,1750432253263,-516.12,0.0002133,2]
[366752956,1750432253272,-460.0,0.0002133,2]
[366752957,1750432253281,-460.0,0.0002133,2]
[366752958,1750432253291,-460.0,0.0002133,2]
[366752959,1750432253300,-483.43,0.0002133,2]
[366752960,1750432253310,-2353.05,0.0002133,2]
[366752961,1750432253320,-460.0,0.0002133,2]
[366752962,1750432253331,-992.35,0.0002133,2]
[366752963,1750432253341,-998.84,0.0002133,2]
[366752964,1750432253351,-3032.46,0.0002133,2]
[366752965,1750432253361,-460.0,0.0002133,2]
[366752966,1750432253371,-421.96006,0.0002133,2]
[366752967,1750432253381,-1183.35,0.0002133,2]
[366752968,1750432253391,-421.96006,0.0002133,2]
[366752969,1750432253402,-964.52,0.0002133,2]
[366752970,1750432253412,-1279.06,0.0002133,2]
[366752971,1750432253422,-1349.1,0.0002133,2]
[366752972,1750432253432,-460.0,0.0002133,2]
[366752973,1750432253441,-195.58,0.0002133,2]
[366752974,1750432253451,-460.0,0.0002133,2]
[366752975,1750432253460,-440.31553835,0.0002133,2]
[366752976,1750432253470,-1288.1,0.0002133,2]
[366752977,1750432253480,-460.0,0.0002133,2]
[366752978,1750432253492,-2862.97,0.0002133,2]
[366752979,1750432253502,-725.25,0.0002133,2]
[366752980,1750432253512,-460.0,0.0002133,2]
[366752981,1750432253522,-460.0,0.0002133,2]
[366752982,1750432253532,-1285.77,0.0002133,2]
[366752983,1750432253542,-460.0,0.0002133,2]
[366752984,1750432253553,-460.0,0.0002133,2]
[366752985,1750432253563,-1482.8,0.0002133,2]
[366752986,1750432253573,-684.83,0.0002133,2]
[366752987,1750432253583,-3144.06,0.0002133,2]
[366752988,1750432253593,-475.38,0.0002133,2]
[366752989,1750432253602,-1059.8,0.0002133,2]
[366752990,1750432253612,-460.0,0.0002133,2]
[366752991,1750432253622,-460.0,0.0002133,2]
[366752992,1750432253631,-799.81,0.0002133,2]
[366752993,1750432253641,-460.0,0.0002133,2]
[366752994,1750432253651,-460.0,0.0002133,2]
[366752995,1750432253660,-3722.06,0.0002133,2]
[366752996,1750432253671,-523.17,0.0002133,2]
[366752997,1750432253680,-460.0,0.0002133,2]
[366752998,1750432253691,-1082.03,0.0002133,2]
[366752999,1750432253701,-613.09,0.0002133,2]
[366753000,1750432253711,-460.0,0.0002133,2]
[366753001,1750432253721,-460.0,0.0002133,2]
[366753002,1750432253734,-460.0,0.0002133,2]
[366753003,1750432253744,-1191.47,0.0002133,2]
[366753004,1750432253753,-843.2,0.0002133,2]
[366753005,1750432253764,-460.0,0.0002133,2]
[366753006,1750432253774,-800.0,0.00021333,2]
[366753007,1750432253783,-460.0,0.00021357,2]
[366753008,1750432253793,-162.5,0.00021357,2]
[366753009,1750432253803,-151.0,0.00021358,2]
[366753010,1750432253812,-1501.992235,0.00021358,2]
[366753011,1750432253822,-1501.992235,0.00021358,2]
[366753012,1750432253831,-169.35232,0.00021358,2]
[366753013,1750432253841,-169.35232,0.00021358,2]
[366753014,1750432253850,-460.0,0.00021358,2]
[366753015,1750432253859,-460.0,0.00021358,2]
[366753016,1750432253869,-634.54,0.00021358,2]
[366753017,1750432253879,-460.0,0.00021358,2]
[366753018,1750432253888,-460.0,0.00021359,2]
[366753019,1750432253897,-385.44,0.00021359,2]
[366753020,1750432253907,-195.30600782,0.00021359,2]
[366753021,1750432253917,-200.0,0.00021399,2]
[366753022,1750432253926,-800.0,0.000214,2]
[366753023,1750432253935,-151.0,0.000214,2]
[366753024,1750432253944,-5439.51062848,0.000214,5]
[366753025,1750432253953,-5439.51062842,0.000214,5]
[366753026,1750432253963,-5439.51062842,0.000214,5]
[366753027,1750432253972,-5439.51062842,0.000214,5]
[366753028,1750432253983,-5439.51062842,0.000214,5]
[366753029,1750432253993,-5439.51062842,0.000214,5]
[366753030,1750432254002,-5439.51062842,0.000214,5]
[366753031,1750432254011,-151.0,0.000214,2]
[366753032,1750432254021,-5439.51062842,0.000214,5]
[366753033,1750432254030,-77.37324692,0.000214,2]
[366753034,1750432254169,-73.62675308,0.000214,2]
[366753035,1750432254179,-500.0,0.00021424,2]
[366753036,1750432254189,-500.0,0.00021451,2]
[366753037,1750432254200,-500.0,0.00021479,2]
[366753038,1750432254215,-896.57584322,0.00021481,2]
[366753039,1750432254224,-762.0,0.00021498,2]
[366753040,1750432254236,-200.0,0.00021499,2]
[366753041,1750432254248,-559073.66963,0.00021499,2]
[366753042,1750432254257,-7254.69699671,0.000215,2]
[366753043,1750432254266,-151.0,0.000215,2]
[366753044,1750432254399,-496.086869,0.000215,2]
[366753045,1750432254410,-496.086869,0.000215,2]
[366753046,1750432254421,-151.0,0.000215,2]
[366753047,1750432254431,-151.0,0.000215,2]
[366753048,1750432254441,-1683.7274347,0.000215,2]
[366753049,1750432254453,-747.5025653,0.000215,2]
[366753050,1750432254463,-761.54395297,0.000215,2]
[366753051,1750432254592,-150.0,0.0001883,2]
[366753052,1750432254622,-61.031487,0.0001883,2]
[366753053,1750432254631,-646.9734686,0.00018831,2]
[366753054,1750432254641,-5000.0,0.00019215,2]
[366753055,1750432254651,-460.0,0.00019409,2]
[366753056,1750432254660,-460.0,0.00019413,2]
[366753057,1750432254670,-460.0,0.00019683,2]
[366753058,1750432254679,-597.64,0.00019958,2]
[366753059,1750432254690,-1428.53,0.00019961,2]
[366753060,1750432254700,-597.64,0.00020232,2]
[366753061,1750432254709,-1428.53,0.00020235,2]
[366753062,1750432254720,-597.64,0.00020506,2]
[366753063,1750432254730,-460.0,0.00020508,2]
[366753064,1750432254742,-597.64,0.0002078,2]
[366753065,1750432254752,-460.0,0.00020782,2]
[366753066,1750432254761,-523.92420239,0.0002105,3]
[366753067,1750432254771,-597.64,0.00021054,2]
[366753068,1750432254781,-460.0,0.00021056,2]
[366753069,1750432254791,-597.64,0.00021328,2]
[366753070,1750432254801,-460.0,0.0002133,2]
[366753071,1750432254811,-92332.67604703,0.000215,2]
[366753072,1750432254820,-151.0,0.000215,2]
[366753073,1750432254829,-151.0,0.000215,2]
[366753074,1750432254838,-151.0,0.000215,2]
[366753075,1750432254848,-151.0,0.000215,2]
[366753076,1750432254858,-154.41147,0.000215,2]
[366753077,1750432254868,-151.0,0.000215,2]
[366753078,1750432254877,-226.645457,0.000215,2]
[366753079,1750432254887,-151.0,0.000215,2]
[366753080,1750432254896,-151.0,0.000215,2]
[366753081,1750432254906,-151.0,0.000215,2]
[366753082,1750432254915,-654.470681,0.000215,2]
[366753083,1750432254924,-151.0,0.000215,2]
[366753084,1750432254934,-654.470681,0.000215,2]
[366753085,1750432254943,-382.476696,0.000215,2]
[366753086,1750432254954,-382.476696,0.000215,2]
[366753087,1750432254964,-151.0,0.000215,2]
[366753088,1750432254973,-500.0,0.00021506,2]
[366753089,1750432254983,-500.0,0.00021534,2]
[366753090,1750432254993,-203.575067,0.00021541,2]
[366753091,1750432255002,-151.0,0.00021541,2]
[366753092,1750432255012,-213.51557418,0.00021544,3]
[366753093,1750432255022,-156.687068,0.00021544,2]
[366753094,1750432255031,-151.0,0.00021544,2]
[366753095,1750432255040,-846.08887863,0.0002155,3]
[366753096,1750432255049,-160.0,0.0002155,3]
[366753097,1750432255060,-160.0,0.0002155,3]
[366753098,1750432255069,-5439.51062842,0.00021555,5]
[366753099,1750432255079,-5000.0,0.0002156,2]
[366753100,1750432255089,-500.0,0.00021561,2]
[366753101,1750432255098,-500.0,0.00021575,2]
[366753102,1750432255108,-500.0,0.00021575,2]
[366753103,1750432255117,-500.0,0.00021588,2]
[366753104,1750432255127,-151.0,0.0002159,2]
[366753105,1750432255136,-151.924719,0.0002159,2]
[366753106,1750432255146,-151.0,0.0002159,2]
[366753107,1750432255155,-151.0,0.0002159,2]
[366753108,1750432255165,-279.208902,0.0002159,2]
[366753109,1750432255174,-279.208902,0.0002159,2]
[366753110,1750432255183,-151.0,0.0002159,2]
[366753111,1750432255192,-151.0,0.000216,2]
[366753112,1750432255202,-151.0,0.000216,2]
[366753113,1750432255213,-151.0,0.000216,2]
[366753114,1750432255223,-460.0,0.00021602,2]
[366753115,1750432255233,-1392.48,0.00021602,2]
[366753116,1750432255244,-2501.22,0.00021602,2]
[366753117,1750432255254,-2688.98,0.00021602,2]
[366753118,1750432255264,-2915.14,0.00021602,2]
[366753119,1750432255274,-597.64,0.00021602,2]
[366753120,1750432255283,-535.67,0.00021604,2]
[366753121,1750432255294,-460.0,0.00021604,2]
[366753122,1750432255304,-634.28,0.00021604,2]
[366753123,1750432255313,-460.0,0.00021604,2]
[366753124,1750432255323,-460.0,0.00021604,2]
[366753125,1750432255332,-516.12,0.00021604,2]
[366753126,1750432255342,-460.0,0.00021604,2]
[366753127,1750432255351,-460.0,0.00021604,2]
[366753128,1750432255361,-460.0,0.00021604,2]
[366753129,1750432255371,-483.43,0.00021604,2]
[366753130,1750432255381,-2353.05,0.00021604,2]
[366753131,1750432255390,-460.0,0.00021604,2]
[366753132,1750432255400,-992.35,0.00021604,2]
[366753133,1750432255410,-998.84,0.00021604,2]
[366753134,1750432255419,-3032.46,0.00021604,2]
[366753135,1750432255429,-460.0,0.00021604,2]
[366753136,1750432255440,-1183.35,0.00021604,2]
[366753137,1750432255450,-964.52,0.00021604,2]
[366753138,1750432255460,-1279.06,0.00021604,2]
[366753139,1750432255470,-1349.1,0.00021604,2]
[366753140,1750432255480,-460.0,0.00021604,2]
[366753141,1750432255490,-460.0,0.00021604,2]
[366753142,1750432255500,-1288.1,0.00021604,2]
[366753143,1750432255511,-151.0,0.00021604,2]
[366753144,1750432255521,-460.0,0.00021604,2]
[366753145,1750432255532,-2862.97,0.00021604,2]
[366753146,1750432255542,-725.25,0.00021604,2]
[366753147,1750432255551,-460.0,0.00021604,2]
[366753148,1750432255561,-460.0,0.00021604,2]
[366753149,1750432255571,-1285.77,0.00021604,2]
[366753150,1750432255580,-460.0,0.00021604,2]
[366753151,1750432255590,-460.0,0.00021604,2]
[366753152,1750432255600,-1482.8,0.00021604,2]
[366753153,1750432255609,-151.0,0.00021604,2]
[366753154,1750432255619,-654.470681,0.00021604,2]
[366753155,1750432255628,-684.83,0.00021604,2]
[366753156,1750432255638,-654.470681,0.00021604,2]
[366753157,1750432255647,-3144.06,0.00021604,2]
[366753158,1750432255658,-475.38,0.00021604,2]
[366753159,1750432255667,-1059.8,0.00021604,2]
[366753160,1750432255677,-460.0,0.00021604,2]
[366753161,1750432255686,-460.0,0.00021604,2]
[366753162,1750432255696,-799.81,0.00021604,2]
[366753163,1750432255706,-460.0,0.00021604,2]
[366753164,1750432255715,-460.0,0.00021604,2]
[366753165,1750432255725,-3722.06,0.00021604,2]
[366753166,1750432255735,-523.17,0.00021604,2]
[366753167,1750432255745,-460.0,0.00021604,2]
[366753168,1750432255755,-1082.03,0.00021604,2]
[366753169,1750432255765,-613.09,0.00021604,2]
[366753170,1750432255775,-460.0,0.00021604,2]
[366753171,1750432255785,-232.06346533,0.00021604,2]
[366753172,1750432255794,-460.0,0.00021604,2]
[366753173,1750432255805,-1191.47,0.00021604,2]
[366753174,1750432255814,-843.2,0.00021604,2]
[366753175,1750432255824,-460.0,0.00021604,2]
[366753176,1750432255834,-151.0,0.00021604,2]
[366753177,1750432255844,-460.0,0.00021604,2]
[366753178,1750432255853,-152.636,0.00021606,2]
[366753179,1750432255863,-150.0,0.00021606,2]
[366753180,1750432255873,-242.386,0.00021606,2]
[366753181,1750432255882,-197.197,0.00021606,2]
[366753182,1750432255891,-500.0,0.00021616,2]
[366753183,1750432255900,-2012.34391619,0.00021616,2]
[366753184,1750432255909,-168.0,0.00021628,2]
[366753185,1750432255919,-158.48421512,0.0002163,2]
[366753186,1750432255929,-460.0,0.00021631,2]
[366753187,1750432255939,-269.632484,0.00021631,2]
[366753188,1750432255949,-151.0,0.00021631,2]
[366753189,1750432255958,-310.339453,0.00021631,2]
[366753190,1750432255968,-310.339453,0.00021631,2]
[366753191,1750432255977,-151.0,0.00021631,2]
[366753192,1750432255986,-421.96006,0.00021631,2]
[366753193,1750432255996,-421.96006,0.00021631,2]
[366753194,1750432256005,-460.0,0.00021632,2]
[366753195,1750432256015,-460.0,0.00021632,2]
[366753196,1750432256024,-634.54,0.00021632,2]
[366753197,1750432256034,-460.0,0.00021632,2]
[366753198,1750432256044,-1501.992235,0.00021633,2]
[366753199,1750432256054,-1501.992235,0.00021633,2]
[366753200,1750432256063,-169.35232,0.00021633,2]
[366753201,1750432256073,-169.35232,0.00021633,2]
[366753202,1750432256082,-501.6880243,0.00021643,9]
[366753203,1750432256092,-433.91171557,0.00021643,2]
[366753204,1750432256101,-168.0,0.00021657,2]
[366753205,1750432256112,-867.4859533,0.00021666,2]
[366753206,1750432256123,-1500.0,0.00021668,2]
[366753207,1750432256133,-495.1505117,0.00021668,2]
[366753208,1750432256142,-1500.0,0.00021668,2]
[366753209,1750432256152,-1500.0,0.00021668,2]
[366753210,1750432256161,-1022.59459124,0.00021668,2]
[366753211,1750432257492,-460.0,0.00019409,2]
[366753212,1750432257502,-84.73,0.00019412,2]
[366753213,1750432258333,-192.90798617,0.00019409,2]
[366753214,1750432267050,782.1313666,0.000245,120]
[366753215,1750432271668,-150.0,0.00019118,6]
[366753216,1750432314621,159.680533,0.00018519,120]
[366753218,1750432344951,-306.03497469,0.00018363,2]
[366753219,1750432364171,-164.90024098,0.00018335,2]
[366753220,1750432368528,-187.7160983,0.00018263,2]
[366753221,1750432383294,-175.15509954,0.00018263,2]
[366753222,1750432402862,-146.93368514,0.00018263,2]
[366753223,1750432402886,-300.0,0.00018334,2]
[366753224,1750432402908,-24735.09975902,0.00018335,2]
[366753225,1750432402934,-8617.43413261,0.00018363,2]
[366753226,1750432402959,-159.680533,0.00018519,2]
[366753227,1750432402982,-4850.0,0.00019118,6]
[366753228,1750432403003,-460.0,0.00019178,2]
[366753229,1750432403024,-18508.85189023,0.00019178,2]
[366753230,1750432418575,-164.79406157,0.00018986,2]
[366753231,1750432420082,-4835.20593843,0.00018986,2]
[366753232,1750432431951,5000.0,0.000191,2]
[366753235,1750432447848,5000.0,0.000191,2]
[366753237,1750432463484,5000.0,0.000191,2]
[366753238,1750432465966,164.79406157,0.00019078,2]
[366753239,1750432466004,10.10837993,0.00019078,2]
[366753240,1750432474207,331.81304512,0.00018622,2]
[366753241,1750432479863,5000.0,0.000191,2]
[366753242,1750432495561,5000.0,0.000191,2]
[366753244,1750432502093,-460.0,0.00019178,2]
[366753245,1750432502116,-460.0,0.00019178,2]
[366753246,1750432502138,-460.0,0.00019178,2]
[366753247,1750432502160,-451.0,0.00019178,2]
[366753248,1750432511481,5000.0,0.000191,2]
[366753250,1750432527431,4658.07857495,0.000191,2]
[366753251,1750432527478,341.92142505,0.000191,2]
[366753252,1750432531843,422.490117,0.00013699,2]
[366753254,1750432541611,409.28722986,0.00018731,2]
[366753255,1750432543414,5000.0,0.000191,2]
[366753256,1750432558732,5000.0,0.000191,2]
[366753260,1750432574091,5000.0,0.000191,2]
[366753263,1750432589967,3826.30122809,0.000191,2]
[366753264,1750432590014,1173.69877191,0.000191,2]
[366753266,1750432605371,5000.0,0.000191,2]
[366753268,1750432620896,5000.0,0.000191,2]
[366753271,1750432636333,5000.0,0.000191,2]
[366753272,1750432651134,1824.022708,0.00018351,2]
[366753273,1750432651888,2002.27852009,0.000191,2]
[366753274,1750432651935,2997.72147991,0.000191,2]
[366753276,1750432667701,5000.0,0.000191,2]
[366753277,1750432683514,5000.0,0.000191,2]
[366753278,1750432696298,418.1,0.000191,2]
[366753280,1750432699541,5000.0,0.000191,2]
[366753281,1750432715084,1584.17852009,0.000191,2]
[366753282,1750432715130,3415.82147991,0.000191,2]
[366753283,1750432731408,5000.0,0.000191,2]
[366753284,1750432732134,168.6208259,0.00018331,2]
[366753285,1750432747223,5000.0,0.000191,2]
[366753286,1750432764629,5000.0,0.000191,2]
[366753288,1750432780144,1415.55769419,0.000191,2]
[366753289,1750432780186,3584.44230581,0.000191,2]
[366753291,1750432795544,5000.0,0.000191,2]
[366753292,1750432809407,1716.7670657,0.00018481,2]
[366753293,1750432811997,5000.0,0.000191,2]
[366753294,1750432827508,4698.79062849,0.000191,2]
[366753295,1750432827556,301.20937151,0.000191,2]
[366753296,1750432843287,163.142907,0.0001863,2]
[366753297,1750432843344,5000.0,0.000191,2]
[366753298,1750432843610,278.68440416,0.00018631,2]
[366753299,1750432858515,5000.0,0.000191,2]
[366753300,1750432873607,9256.96331733,0.00018348,2]
[366753301,1750432873655,743.03668267,0.00018348,2]
[366753302,1750432874911,5000.0,0.000191,2]
[366753303,1750432890789,5000.0,0.000191,2]
[366753304,1750432891970,150.5,0.0002329,120]
[366753305,1750432892104,150.5,0.0002329,120]
[366753306,1750432892194,150.5,0.0002329,120]
[366753307,1750432892642,150.5,0.0002328,120]
[366753308,1750432892693,150.5,0.0002328,120]
[366753309,1750432892742,150.5,0.0002328,120]
[366753310,1750432892904,150.5,0.0002327,120]
[366753311,1750432893133,150.5,0.0002327,120]
[366753312,1750432893173,150.5,0.0002327,120]
[366753313,1750432893366,270.46,0.0002389,120]
[366753314,1750432893595,235.8,0.0002389,120]
[366753315,1750432893637,170.0,0.0002389,120]
[366753316,1750432906030,5000.0,0.000191,2]
[366753317,1750432910177,4256.96331733,0.00018312,2]
[366753318,1750432910222,2395.69920797,0.00018312,2]
[366753319,1750432921888,5000.0,0.000191,2]
[366753320,1750432937188,5000.0,0.000191,2]
[366753321,1750432952270,5000.0,0.000191,2]
[366753322,1750432968159,2604.30079203,0.000191,2]
[366753323,1750432968210,2395.69920797,0.000191,2]
[366753324,1750432976188,214.25869964,0.00025152,60]
[366753325,1750432983450,5000.0,0.000191,2]
[366753326,1750432999929,5000.0,0.000191,2]
[366753327,1750433015161,5000.0,0.000191,2]
[366753328,1750433030850,2604.30079203,0.000191,2]
[366753329,1750433030896,2395.69920797,0.000191,2]
[366753330,1750433046282,5000.0,0.000191,2]
[366753331,1750433048342,250.0,0.00018043,2]
[366753333,1750433062848,5000.0,0.000191,2]
[366753380,1750433078743,5000.0,0.000191,2]
[366753384,1750433090019,1560.5272682,0.00018324,2]
[366753385,1750433094174,793.77352383,0.000191,2]
[366753386,1750433094220,4206.22647617,0.000191,2]
[366753387,1750433111029,5000.0,0.000191,2]
[366753391,1750433126582,5000.0,0.000191,2]
[366753403,1750433142485,5000.0,0.000191,2]
[366753404,1750433144919,260.595321,0.00018623,2]
[366753405,1750433145242,303.73300566,0.00018709,2]
[366753406,1750433147135,-9.0,0.00019178,2]
[366753407,1750433147156,-19.29787627,0.00019178,2]
[366753408,1750433147178,-168.70212373,0.00019178,2]
[366753573,1750433158201,229.44519717,0.000191,2]
[366753575,1750433158249,4770.55480283,0.000191,2]
[366753786,1750433170848,7550.728408,0.000189,2]
[366753787,1750433173619,5000.0,0.000191,2]
[366753941,1750433189782,2678.71678917,0.000191,2]
[366753942,1750433189833,2321.28321083,0.000191,2]
[366753943,1750433190266,666.0,0.00018314,2]
[366753944,1750433190562,200.0,0.00024567,120]
[366753946,1750433192751,5033.81893867,0.000189,2]
[366753982,1750433205219,5000.0,0.000191,2]
[366753983,1750433214034,6978.8978505,0.00018299,2]
[366753984,1750433214078,7311.125886,0.00018299,2]
[366753985,1750433221755,5000.0,0.000191,2]
[366753986,1750433223231,2000.0,0.00018299,120]
[366753998,1750433237405,7688.874114,0.000183,2]
[366753999,1750433237460,11710.0109752,0.000183,2]
[366754000,1750433237998,5000.0,0.000191,2]
[366754002,1750433251370,200.0,0.00024384,120]
[366754003,1750433254165,3289.9890248,0.000191,2]
[366754004,1750433254225,1710.0109752,0.000191,2]
[366754005,1750433270050,5000.0,0.000191,2]
[366754007,1750433275494,711.83200019,0.000246,120]
[366754008,1750433276577,6928.77774146,0.00018,2]
[366754009,1750433284591,1038.1016458,0.00018449,2]
[366754010,1750433285358,5000.0,0.000191,2]
[366754011,1750433300308,323.10963754,0.00010618,2]
[366754012,1750433300356,89.85333539,0.00010618,2]
[366754013,1750433301772,5000.0,0.000191,2]
[366754014,1750433302338,11323.04350749,0.000125,2]
[366754015,1750433305826,188.0,0.0002,120]
[366754017,1750433311719,2074.69281919,0.000176,2]
[366754020,1750433313485,200.62823428,0.00019,2]
[366754021,1750433314232,276.38431614,0.00014114,2]
[366754022,1750433316433,281.20796984,0.0001,2]
[366754023,1750433316659,-16.47206927,0.00019178,2]
[366754024,1750433316683,-283.63460013,0.00019197,2]
[366754026,1750433317824,754.18981767,0.000191,2]
[366754027,1750433317870,4245.81018233,0.000191,2]
[366754028,1750433319524,202.6993805,0.00018301,2]
[366754029,1750433320879,1223.50163695,0.0002,120]
[366754030,1750433322262,7082.80543201,0.00017,2]
[366754031,1750433323891,386.42568305,0.00024108,120]
[366754032,1750433325247,1795.66437587,0.00024,120]
[366754033,1750433325398,2149.56853655,0.00018,2]
[366754035,1750433326943,577.67296636,0.000149,2]
[366754036,1750433329167,-107.70151456,0.00019197,2]
[366754037,1750433329193,-45.0919807,0.00019206,2]
[366754038,1750433329767,1990.3523089,0.00025151,120]
[366754039,1750433330367,391.30255353,0.00024,120]
[366754041,1750433330713,970.449757,0.00018,120]
[366754043,1750433331374,218.4058888,0.0001536,120]
[366754045,1750433332826,1010.82351597,0.0002,120]
[366754051,1750433334017,5000.0,0.000191,2]
[366754057,1750433334647,501.06886268,0.0002465,120]
[366754058,1750433334761,237.68845222,0.00024,120]
[366754059,1750433334793,158.92,0.00019216,120]
[366754060,1750433336818,500.0,0.00024658,120]
[366754061,1750433350072,741.44350225,0.000191,2]
[366754062,1750433350125,4258.55649775,0.000191,2]
[366754063,1750433357109,15741.44350225,0.00018304,2]
[366754064,1750433357159,9158.55649775,0.00018304,2]
[366754065,1750433357789,-124.56798699,0.00019206,2]
[366754066,1750433357813,-34.27023717,0.00019293,2]
[366754067,1750433359318,173.250763,0.0001845,2]
[366754068,1750433359504,173.250763,0.0001845,41]
[366754069,1750433359718,173.250763,0.0001845,80]
[366754074,1750433359919,173.250763,0.0001845,119]
[366754075,1750433360113,2573.9242967,0.00018305,2]
[366754076,1750433366072,5000.0,0.000191,2]
[366754077,1750433367575,500.0,0.00024658,120]
[366754078,1750433370992,200.0,0.00023773,120]
[366754079,1750433374340,-169.43584465,0.00019206,2]
[366754080,1750433376270,-36.8361173,0.00019206,2]
[366754081,1750433376296,-115.28036751,0.00019206,2]
[366754082,1750433381003,381.96330828,0.00019016,2]
[366754083,1750433381339,-200.1513353,0.00019206,2]
[366754084,1750433381986,2712.30513427,0.000191,2]
[366754085,1750433382041,2287.69486573,0.000191,2]
[366754088,1750433391113,167.0,0.00019,2]
[366754089,1750433392203,-160.01807888,0.00019206,2]
[366754090,1750433394481,167.0,0.00019,2]
[366754091,1750433397962,5000.0,0.000191,2]
[366754092,1750433399612,204.37,0.00024658,120]
[366754093,1750433402176,-169.09195517,0.00019202,2]
[366754094,1750433402200,-39.49620112,0.00019203,2]
[366754095,1750433406347,4105.51131172,0.000191,2]
[366754096,1750433409699,-129.59575404,0.00019203,2]
[366754097,1750433409723,-139.46100221,0.00019206,2]
[366754098,1750433409745,-92.28200952,0.00019252,2]
[366754099,1750433414490,8272.79382255,0.00018303,2]
[366754100,1750433414540,7790.82683275,0.00018303,2]
[366754101,1750433415068,5000.0,0.000191,2]
[366754102,1750433415121,-113.98995241,0.00019252,2]
[366754103,1750433415145,-49.59884199,0.00019292,2]
[366754104,1750433424663,-170.46100001,0.00019178,2]
[366754105,1750433427804,280.1009079,0.00018304,2]
[366754106,1750433430352,5000.0,0.000191,2]
[366754123,1750433432487,-9931.69535109,0.00019178,2]
[366754124,1750433432496,-184.0311936,0.00019192,2]
[366754125,1750433432507,-110.40115801,0.00019292,2]
[366754126,1750433432517,-173.66,0.00019297,2]
[366754127,1750433432528,-206.27196193,0.00019298,2]
[366754128,1750433432538,-300.0,0.00019302,2]
[366754129,1750433432550,-300.0,0.00019302,2]
[366754130,1750433432560,-300.0,0.00019302,2]
[366754131,1750433432570,-298.0,0.00019302,2]
[366754132,1750433432580,-797.5578195,0.00019302,2]